Cogmind - Beta 17 @@@ ROGUE MODE // 2026.06.27 @ 20:58:12 Player: Ceorik Result: Destroyed by H-55 Commando with Gauss Rifle Performance ------------- Evolutions (0) 0 Regions Visited (1) 200 Robots Destroyed (32) 160 Value Destroyed (818) 818 Prototype IDs (3) 60 Alien Tech Used (0) 0 Bonus (8062) 8062 TOTAL SCORE: 9300 Bonus ------- High Alert Combat Kills 62 Prayed to X0-1V1 5000 Major X0-1V1 Interference 3000 Cogmind --------- Core Integrity 0/150 Matter 300/300 Energy 159/160 System Corruption 0% Temperature Cool (12) Movement Rolling (115) Ox1 Location -10/Materials Parts ------- > --- POWER (1) -------- Light Nuclear Core > --- PROPULSION (3) --- Light Treads Light Treads Compact Wheel > --- UTILITY (2) ------ Large Storage Unit X0-1V1's Piety Tracker > --- WEAPON (5) ------- Assault Rifle Light Assault Rifle Light Assault Rifle > --- INVENTORY (15) --- Light Ion Engine Light Ion Engine Heat Sink Light Armor Plating Light Armor Plating Particle Gun Grenade Launcher Grenade Launcher Mining Claw Peak State ------------ > --- POWER ------------ Light Nuclear Core > --- PROPULSION ------- Light Treads Light Treads Compact Wheel > --- UTILITY ---------- Large Storage Unit X0-1V1's Piety Tracker > --- WEAPON ----------- Assault Rifle Assault Rifle Light Assault Rifle Light Assault Rifle Mining Laser > --- INVENTORY -------- Light Ion Engine Light Ion Engine Heat Sink Light Armor Plating Light Armor Plating Particle Gun Grenade Launcher Grenade Launcher Mining Claw [Rating: 26] Favorites ----------- Power Ion Engine Engine Ion Engine Power Core Light Nuclear Core Propulsion Light Treads Treads Light Treads Leg Aluminum Leg Wheel Wheel Utility X0-1V1's Piety Tracker Device X0-1V1's Piety Tracker Storage Large Storage Unit Weapon Assault Rifle Energy Gun Particle Gun Ballistic Gun Assault Rifle Launcher Grenade Launcher Special Weapon Mining Laser Slashing Weapon Mining Claw Build | -11 -10 ------- Run | Yrd Mat Slots Evolved . | . . Power . | . . Propulsion . | . . Utility . | . . Weapon . | . . Parts Attached 19 | 3 16 Power 1 | . 1 Engine . | . . Core 1 | . 1 Reactor . | . . Propulsion 6 | 3 3 Treads 3 | 2 1 Leg . | . . Wheel 3 | 1 2 Hover . | . . Flight . | . . Utility 4 | . 4 Device 2 | . 2 Storage 2 | . 2 Processor . | . . Hackware . | . . Protection . | . . Artifact . | . . Weapon 8 | . 8 Energy Gun 1 | . 1 Energy Cannon . | . . Ballistic Gun 4 | . 4 Ballistic Cannon . | . . Launcher 1 | . 1 Special Weapon 1 | . 1 Impact Weapon . | . . Slashing Weapon 1 | . 1 Piercing Weapon . | . . Special Melee Weapon . | . . Unidentified Prototypes 1 | . 1 Parts Lost 6 | . 6 Power 1 | . 1 Propulsion 3 | . 3 Utility . | . . Weapon 2 | . 2 Highest Loss Streak 2 | . 2 To Critical Strikes . | . . Average Backups 9 | 6 9 Power 2 | 1 2 Propulsion 1 | 4 1 Utility 1 | . 1 Weapon 4 | 1 4 Tool/Special . | . . Unused Backups 4 | . 4 Power 1 | . 1 Propulsion . | . . Utility 2 | . 2 Weapon 1 | . 1 Tool/Special . | . . Average Slot Usage (%) 95 | . 95 Engine 11 | . 11 Core 1 | . 1 Treads 18 | . 18 Wheel 10 | . 10 Device 11 | . 11 Storage 12 | . 12 Ballistic Gun 24 | . 24 Special Weapon 2 | . 2 Slashing Weapon 1 | . 1 Peak Build Rating 26 | 6 26 Average Rating 16 | 6 16 On Entrance 6 | 6 6 Avg Prop Armor Cover (%) 16 | . 16 Naked Turns . | . . Heaviest Build 35 | 13 35 Greatest Support 40 | 20 40 Greatest Overweight (x) 2 | . 2 Average Overweight (x) 1 | . 1 Largest Inventory Capacity 15 | 8 15 Average Capacity 12 | 8 12 Most Carried 15 | 6 15 Average Carried 9 | 5 9 Final Capacity 15 | 8 15 Final Carried 9 | 4 9 Class Distribution -------------------- 68% | Mutant 31% | Gunner Dominant Class ---------------- Mutant | -10/Materials Resources | -11 -10 ----------- Run | Yrd Mat Matter Collected 782 | 230 552 Remotely . | . . Salvage Created 1169 | . 1169 Parts 50 | . 50 Haulers Intercepted 1 | . 1 Recyclers Shooed 1 | . 1 Parts Field Recycled . | . . Retrieved Matter . | . . Parts Self-Destructed . | . . Prevented . | . . Parts Restored . | . . Kills | -11 -10 ------- Run | Yrd Mat Combat Hostiles Destroyed 22 | . 22 Guns 13 | . 13 AOE 9 | . 9 Classes Destroyed 8 | . 8 Worker 1 | . 1 Builder 2 | . 2 Tunneler 1 | . 1 Hauler 1 | . 1 Recycler 4 | . 4 Operator 1 | . 1 Swarmer 3 | . 3 Grunt 19 | . 19 Best Kill Streak 6 | . 6 Combat Bots Only 5 | . 5 Max Kills in Single Turn 4 | . 4 Gunslinging . | . . Exploded 4 | . 4 Melee . | . . Uniques/NPCs Destroyed . | . . Combat | -11 -10 -------- Run | Yrd Mat Hostile Shots Fired 116 | . 116 Missed 21 | . 21 Hits 95 | . 95 Projectile 95 | . 95 Critical Strikes 1 | . 1 Damage Taken 1156 | . 1156 Core 196 | . 196 Absorbed by Shields . | . . Core Remaining (%) 100 | 100 . Volleys Fired 69 | . 69 Largest 4 | . 4 Hottest 125 | . 125 Shots Fired 135 | . 135 Gun 123 | . 123 Cannon . | . . Launcher 6 | . 6 Special 6 | . 6 Kinetic 114 | . 114 Thermal 15 | . 15 Explosive 6 | . 6 Electromagnetic . | . . Robot Hit Streak 12 | . 12 Robot Miss Streak 3 | . 3 Penetration Max . | . . Secondary Targets . | . . Shots Hit Robots 83 | . 83 Core Hits 51 | . 51 Critical Kills 1 | . 1 Critical Parts Destroyed . | . . Critical Strikes 2 | . 2 Burn 1 | . 1 Destroy 1 | . 1 Melee Attacks 27 | . 27 Impact . | . . Slashing 27 | . 27 Piercing . | . . Sneak Attacks . | . . Combat Hostiles . | . . Follow-up Attacks . | . . Damage Inflicted 1481 | . 1481 Guns 966 | . 966 Cannons . | . . Explosions 500 | . 500 Melee . | . . Ramming 15 | . 15 Kinetic 878 | . 878 Thermal 88 | . 88 Explosive 500 | . 500 Electromagnetic . | . . Impact . | . . Slashing . | . . Piercing . | . . Highest Corruption . | . . Average Corruption . | . . Corruption Purged . | . . Corruption Blocked . | . . Overload Shots . | . . Overflow Damage 16 | . 16 Projectiles . | . . Explosions 16 | . 16 Melee . | . . Knockbacks . | . . Impact . | . . Kinetic . | . . Secondary . | . . Self-Inflicted Damage 5 | . 5 Shots . | . . Rammed 2 | . 2 Targets Rammed 2 | . 2 Kicked . | . . Crushed . | . . Highest Temperature 431 | . 431 Average Temperature 116 | . 116 Received Heat Transfer 537 | . 537 Effects 1 | . 1 Shutdowns 1 | . 1 Siege Activations . | . . Martial Activations . | . . Shielding Activations . | . . Robots Disrupted . | . . Combat Hostiles . | . . Robots Corrupted . | . . Combat Hostiles . | . . Parts Fried . | . . Impact Corruptions . | . . Robots Melted . | . . Combat Hostiles . | . . Parts Melted 2 | . 2 Heat Transferred 296 | . 296 Parts Sabotaged . | . . Parts Stolen . | . . Parts Stripped . | . . Power Chain Reactions . | . . Alert | -11 -10 ------- Run | Yrd Mat Maximum Alert Level 2 | . 2 Low Security (%) 63 | 100 63 Level 1 4 | . 4 Level 2 31 | . 32 Level 3 . | . . Level 4 . | . . Level 5 . | . . High Security . | . . Max Security . | . . Peak Influence 577 | . 577 Initial . | . . Average 194 | . 196 Influence Increases 960 | . 960 Destroy 0b10 Robot/C 440 | . 440 Destroy 0b10 Robot/NC 50 | . 50 Destroy Leader 82 | . 82 Successful Hack 19 | . 19 Select Force Hacks 30 | . 30 Disable Machine 45 | . 45 Destroy Structure 22 | . 22 Lose Combat Pursuer 60 | . 60 Miscellaneous 212 | . 212 Influence Decreases 408 | . 408 Time Decay 348 | . 348 Lost Part 60 | . 60 Squads Dispatched 6 | . 6 Investigation 3 | . 3 Extermination . | . . Reinforcement 3 | . 3 Assault . | . . Garrison . | . . Intercept . | . . Searches Triggered . | . . Construction Impeded . | . . Haulers Reinforced . | . . Active Scanning Responses . | . . Cargo Convoy Interrupts . | . . Stealth | -11 -10 --------- Run | Yrd Mat Distress Signals 2 | . 2 Communications Jammed . | . . Distress Signals . | . . Times Spotted 37 | . 37 Peak Tracking Total 6 | . 6 Tactical Retreats 2 | . 2 Traps | -11 -10 ------- Run | Yrd Mat Traps Triggered 1 | . 1 Indirectly . | . . Trap Hack Attempts . | . . Triggered . | . . Disarmed . | . . Reprogrammed . | . . Reused . | . . Traps Extracted . | . . Installed . | . . Triggered . | . . Machines | -11 -10 ---------- Run | Yrd Mat Machines Disabled 3 | . 3 Max in Single Turn 2 | . 2 Machines Repaired . | . . Machines Dismantled . | . . Machines Sabotaged . | . . Overloaded Fab Kills . | . . Hacking | -11 -10 --------- Run | Yrd Mat Machines Accessed 8 | . 8 Terminals 7 | . 7 Fabricators . | . . Repair Stations . | . . Recycling Units 1 | . 1 Scanalyzers . | . . Garrison Access . | . . Total Hacks 23 | . 23 Successful 16 | . 16 Failed 7 | . 7 Catastrophic . | . . Database Lockouts . | . . Manual 18 | . 18 Terminals 22 | . 22 Fabricators . | . . Repair Stations . | . . Recycling Units 1 | . 1 Scanalyzers . | . . Garrison Access . | . . Terminal Hacks 9 | . 9 Robot Analysis 3 | . 3 Prototype ID Bank 1 | . 1 Locate Traps 2 | . 2 Recall Investigation 1 | . 1 Recall Reinforcements 1 | . 1 Zone Layout 1 | . 1 Fabricator Hacks . | . . Repair Station Hacks . | . . Recycling Unit Hacks . | . . Scanalyzer . | . . Garrison Access Hacks . | . . Unauthorized Hacks 7 | . 7 Terminals 6 | . 6 Botnet 6 | . 6 Fabricators . | . . Repair Stations . | . . Recycling Units 1 | . 1 Tunnel 1 | . 1 Scanalyzers . | . . Garrison Access . | . . Data Cores Recovered . | . . Used . | . . Hacking Detections 7 | . 7 Full Trace Events . | . . Feedback Events . | . . Feedback Blocked . | . . Robot Schematics Acquired . | . . Robots Built . | . . Authchips . | . . Time . | . . Total Robot Build Rating . | . . Part Schematics Acquired . | . . Parts Built . | . . Authchips . | . . Time . | . . Total Part Build Rating . | . . Part Studies Acquired . | . . Parts Repaired . | . . Time . | . . Parts Recycled . | . . Recycled Matter . | . . Retrieved Matter . | . . Retrieved Components . | . . Parts Scanalyzed . | . . Part Schematics Acquired . | . . Parts Damaged . | . . Bothacking | -11 -10 ------------ Run | Yrd Mat Used RIF Installer . | . . Robots Hacked . | . . Non-combat . | . . Combat . | . . Robot Hacks Applied . | . . Relay Couplers Released . | . . Fabnet Peak Effective % . | . . Robots Rewired . | . . Allies Hacked . | . . Hacks Repelled . | . . Allies | -11 -10 -------- Run | Yrd Mat Total Allies . | . . Largest Group . | . . Highest-Rated Group . | . . Highest-Rated Ally . | . . Total Orders . | . . Ally Attacks . | . . Total Damage . | . . Kills . | . . Allies Corrupted . | . . Allies Melted . | . . X0-1V1 Amusement Gains 28 | . 28 Good Acts 8 | . 8 Bad Acts 12 | . 12 Intel | -11 -10 ------- Run | Yrd Mat Active Infowar (turns) . | . . Robot Analysis Total 3 | . 3 Derelict Logs Recovered . | . . Drone Launches . | . . Drone Recoveries . | . . Exploration | -11 -10 ------------- Run | Yrd Mat Turns Passed 1100 | 8 1092 Spaces Moved 485 | 3 482 Core . | . . Treads 57 | . 57 Legs 1 | 1 . Wheels 427 | 2 425 Hover . | . . Flight . | . . Fastest Speed 95 | 100 95 Average Speed 112 | 106 112 Slowest Speed 160 | 120 160 Overloaded Moves . | . . Propulsion Burnouts . | . . Robots Hopped . | . . Potential Cave-ins . | . . Cave-ins Triggered . | . . Exploration Rate (%) 33 | 2 65 Regions Visited 1 Branch Regions . Pre-discovered Areas 1 | . 1 Known Exits Taken . | . . Unknown Exits Taken 1 | 1 . Scrap Searched . | . . Spaces Dug 9 | . 9 Terrain Destroyed 28 | . 28 Melee 4 | . 4 Projectile 5 | . 5 AOE 19 | . 19 Terrain Rammed . | . . Walls Destroyed . | . . Machines Disabled . | . . Actions | -11 -10 --------- Run | Yrd Mat Total 863 | 7 856 Wait 235 | . 235 Move 484 | 2 482 Hop . | . . Pick Up 13 | . 13 Fast Attach 3 | . 3 Attach 8 | . 8 Detach . | . . Swap 18 | 3 15 Drop 4 | 2 2 Fire 69 | . 69 Melee 27 | . 27 Ram 1 | . 1 Kick . | . . Crush 1 | . 1 Escape Stasis . | . . Rewire . | . . Trap . | . . Miscellaneous . | . . Route ------- -11/Scrapyard -10/Materials (discovered 3 exits: *Mat x2 / [*Sub]) History --------- Turn | Location | Event 1 | -11/Scrapyard | Discovered new exit (range 3) 9 | -11/Scrapyard | Entered Materials 10 | -10/Materials | Met a group of wandering Federalists 189 | -10/Materials | Discovered new exit (range 11) 309 | -10/Materials | Build established: Mutant 379 | -10/Materials | Prayed at D.C.S.S. Altar Unit 458 | -10/Materials | Energy generation permanently improved by X0-1V1 (+10; -100 max core) 476 | -10/Materials | X0-1V1 mutated your Weapon slot to Propulsion slot 490 | -10/Materials | Discovered new exit (range 16) 491 | -10/Materials | X0-1V1 tapped a No Entrance sign 638 | -10/Materials | Discovered new exit (range 16) 682 | -10/Materials | X0-1V1 sent hostile G-34 Mercenary (x5) 705 | -10/Materials | Identified exit to Materials 705 | -10/Materials | X0-1V1 revealed exit location to -9/Materials 740 | -10/Materials | X0-1V1 announced a LAN party 744 | -10/Materials | X0-1V1 enhanced Transport squad support 750 | -10/Materials | X0-1V1 added 0b10 threat records associated with you (considerable) 756 | -10/Materials | X0-1V1 upgraded hostiles (x2) 777 | -10/Materials | Weapon slot count temporarily expanded by X0-1V1 (+4) 782 | -10/Materials | Core integrity fell below 50% 819 | -10/Materials | X0-1V1 foreshadows a heat wave 871 | -10/Materials | Core integrity fell below 20% 964 | -10/Materials | Ambient heat levels rising (+10) 988 | -10/Materials | X0-1V1 activates XOMVISION 1046 | -10/Materials | Build established: Gunner 1101 | -10/Materials | Destroyed by H-55 Commando with Gauss Rifle Last Messages --------------- 00968_ Acquired Com. Wheel. 00971_ Acquired 10 matter. 00974_ K-01 Serf collects debris. 00988_ Suggestive images of robots vie for attention in your data streams. 00988_ X0-1V1: "Enjoy your XOMVISION!" 00989_ K-01 Serf collects debris. 01009_ Terminal disabled. 01020_ U-05 Engineer builds a Wall. 01021_ U-05 Engineer heat damages Welding Torch. 01090_ Penetrated by Slug. 01091_ Slug penetrates Wall. 01096_ U-05 Engineer builds a Wall. 01097_ Penetrated by Slug. 01097_ Mining Laser destroyed. 01098_ Penetrated by Slug. 01098_ G-34 Mercenary destroyed. 01098_ Assault Rifle destroyed. 01100_ Penetrated by Slug. 01101_ X0-1V1 chuckles heartily! Map ----- +----------------------------------------------------+ | | | | | | | | | | | | | | | | | | | | | | | | | ?????????????????????????????????????????????????? | | ?????????????????????????????????????????????????? | | ?????????????????????????????????????????????????? | | ?????????????????????????????????????????????????? | | ########?????????????????????????????????????????? | | # """ #?????##########??????????????????????????? | | # "T" #?????#Y #####??????????????????????? | | # #?????# """ # #???????####???????????? | | # = #?????# """ # < #???^?^? #???????????? | | # * #?????# """ # #?#????? !#?????????!!! | | # #?????# + #?# """ #???????????? | | ##+#####?????# # #?# """ #???????????? | | ## #?????????# "T" # ### ^ #???????????? | | ## #?????????# """ # @### """^""#???????????? | | ## #?????????# # # #^ """ Y"#???????????? | | ## #?????????##########hh # #^ """ ""#???????????? | | ## ########### # % # #?? ?????????????? | | ## # = #" """" /u #######+#######????????? | | ##%# # """" # %% % ######???? | | ?# # """ """ #" """ # ! ##### ? | | ## # """ """ # #=%* #???# = ? | | # """ """ # """" #%[ #???#+#+## ? | | + # """" *#%% #???? # ? | | # # """"" # #?? #? ?? | | # "T" # # ## #? ??? | | #################### ## """ #?? ??? | | #?????????????# o ## """ #???""""" ??? | | ############### ## """ #??"""""" ??? | | """ ## #? "" ??? | | """ ##?? # ?? | | """ ########## ?? | | !! | | % ** !? | | ############# """ ![ ! ? | | # # """ % ? | | # """ """ # """ = ? | | + """ """ # # ?? | | *%/ # """ """ # % #??? | +----------------------------------------------------+ Best States ------------- Heat Dissipation 35 Energy Generation 24 Energy Capacity 250 Matter Stores 300 Matter Capacity 300 Sight Range 16 Terrain Scan Density 10 Evasion (%) 41 Recoil Reduction 2 Item Schematics ----------------- None Robot Schematics ------------------ None Fabricated ------------ Nothing Repaired ---------- Nothing Studied --------- None Alien Tech Used ----------------- None Achievements -------------- None Challenges ------------ None Game ------ Seed SupercompositeChainCharge Manual? 0 Play Time 00:13:56 Cumulative 202.7 hours Start 2026.06.27 @ 20:47:00 End 2026.06.27 @ 20:58:12 Sessions 1 Manual Loads 0 Difficulty Rogue Special Mode None Game No. 165 Rogue 165 Adventurer 0 Explorer 0 Win Type - Total 3 Types 3/0/0/0/0/0/0/0/0/0 Lore% 77 Gallery% 66 Achievement% 58 Wizard Run 0 Options --------- Layout 2 ASCII 0 Keyboard 0 Movement Mouse Keybinds 0 Fullscreen 1 Font 24/Smallcaps Map View 50x44 Zoom Use 0% Tactical HUD 1 Map Filters NONE Filters NONE Steam 1 RUN: 0486c0e9-9841-4d80-95a3-025fe547ccdb